[Event "*** Titled Tuesday Blitz"]
[Site "Chess.com"]
[Date "2018.06.05"]
[Round "6"]
[White "MateusViageiro"]
[Black "GoingKronos"]
[Result "1-0"]
[WhiteElo "2178"]
[BlackElo "2325"]
[TimeControl "180+2"]
[EndTime "14:27:11 PDT"]
[Termination "MateusViageiro won on time"]

1. e4 {[%clk 0:03:01.9]} 1... e6 {[%clk 0:03:00.5]} 2. d4 {[%clk 0:03:02]} 2...
d5 {[%clk 0:03:01.7]} 3. Nd2 {[%clk 0:03:02.5]} 3... c5 {[%clk 0:03:02.1]} 4.
Ngf3 {[%clk 0:03:02.6]} 4... a6 {[%clk 0:03:02.7]} 5. c3 {[%clk 0:03:01.8]} 5...
Nc6 {[%clk 0:03:02.8]} 6. exd5 {[%clk 0:03:01.6]} 6... exd5 {[%clk 0:03:03.6]}
7. dxc5 {[%clk 0:03:01.3]} 7... Bxc5 {[%clk 0:03:04.1]} 8. Bd3 {[%clk
0:03:02.1]} 8... Nf6 {[%clk 0:03:03.8]} 9. O-O {[%clk 0:03:02.6]} 9... O-O
{[%clk 0:03:05]} 10. Nb3 {[%clk 0:03:03.6]} 10... Bb6 {[%clk 0:03:06.1]} 11. h3
{[%clk 0:03:04.5]} 11... Re8 {[%clk 0:03:00.8]} 12. Bc2 {[%clk 0:03:01.9]} 12...
Qd6 {[%clk 0:02:46.7]} 13. Nbd4 {[%clk 0:02:55.3]} 13... Bd7 {[%clk 0:02:38.9]}
14. Be3 {[%clk 0:02:46]} 14... Bc7 {[%clk 0:02:38.5]} 15. Re1 {[%clk 0:02:40.1]}
15... Ne4 {[%clk 0:02:39.2]} 16. Nxc6 {[%clk 0:02:36.1]} 16... bxc6 {[%clk
0:02:36]} 17. Kf1 {[%clk 0:02:23.7]} 17... Rad8 {[%clk 0:02:32.4]} 18. Bxe4
{[%clk 0:02:23.5]} 18... Rxe4 {[%clk 0:02:31.5]} 19. Ng5 {[%clk 0:02:24.3]}
19... Ree8 {[%clk 0:02:22.2]} 20. Qh5 {[%clk 0:02:24.4]} 20... Qg6 {[%clk
0:02:19.9]} 21. Qxg6 {[%clk 0:02:24.7]} 21... hxg6 {[%clk 0:02:21]} 22. Bc5
{[%clk 0:02:25.2]} 22... f6 {[%clk 0:02:17.8]} 23. Nf3 {[%clk 0:02:25.5]} 23...
Kf7 {[%clk 0:02:19]} 24. Nd4 {[%clk 0:02:25.9]} 24... Re5 {[%clk 0:02:11.4]} 25.
Nf3 {[%clk 0:02:24.1]} 25... Re4 {[%clk 0:02:08.9]} 26. Nd2 {[%clk 0:02:23]}
26... Rxe1+ {[%clk 0:02:07]} 27. Rxe1 {[%clk 0:02:22.9]} 27... Re8 {[%clk
0:02:00.1]} 28. Nf3 {[%clk 0:02:23.1]} 28... g5 {[%clk 0:01:55.8]} 29. Nd4
{[%clk 0:02:18.1]} 29... Re5 {[%clk 0:01:56.2]} 30. Nc2 {[%clk 0:02:16.2]} 30...
Bf5 {[%clk 0:01:51.3]} 31. Rxe5 {[%clk 0:02:11.8]} 31... fxe5 {[%clk 0:01:12.4]}
32. Nb4 {[%clk 0:02:12.3]} 32... Bd7 {[%clk 0:01:13.9]} 33. Nxa6 {[%clk
0:02:11.6]} 33... Bd8 {[%clk 0:01:15.2]} 34. Nb4 {[%clk 0:02:08.6]} 34... Ke6
{[%clk 0:01:16.1]} 35. Ke1 {[%clk 0:02:07.5]} 35... Kf5 {[%clk 0:01:12.8]} 36.
a4 {[%clk 0:02:04.6]} 36... Ke4 {[%clk 0:01:11.2]} 37. Ke2 {[%clk 0:02:03]}
37... Ba5 {[%clk 0:01:02.9]} 38. Nd3 {[%clk 0:02:01]} 38... Bc8 {[%clk
0:00:58.9]} 39. g4 {[%clk 0:01:59.2]} 39... d4 {[%clk 0:00:57.2]} 40. c4 {[%clk
0:02:00]} 1-0

[Event "*** Titled Tuesday Blitz"]
[Site "Chess.com"]
[Date "2018.06.05"]
[Round "6"]
[White "51616516516"]
[Black "Vusatiuk_Vladimir"]
[Result "1-0"]
[WhiteElo "2299"]
[BlackElo "2184"]
[TimeControl "180+2"]
[EndTime "14:27:23 PDT"]
[Termination "51616516516 won by resignation"]

1. d4 {[%clk 0:03:01.9]} 1... Nf6 {[%clk 0:02:59.9]} 2. c4 {[%clk 0:03:02]} 2...
e6 {[%clk 0:03:01.1]} 3. Nc3 {[%clk 0:03:02.4]} 3... Bb4 {[%clk 0:03:01.6]} 4.
Qc2 {[%clk 0:03:03.9]} 4... b6 {[%clk 0:03:02]} 5. e4 {[%clk 0:03:03.6]} 5...
Bb7 {[%clk 0:03:01.2]} 6. Bd3 {[%clk 0:03:02]} 6... Bxc3+ {[%clk 0:02:53.7]} 7.
bxc3 {[%clk 0:03:02.2]} 7... d6 {[%clk 0:02:55.5]} 8. Nf3 {[%clk 0:03:02.7]}
8... Nbd7 {[%clk 0:02:56]} 9. Bg5 {[%clk 0:03:03]} 9... e5 {[%clk 0:02:56.3]}
10. O-O {[%clk 0:03:01.6]} 10... h6 {[%clk 0:02:43.2]} 11. Bh4 {[%clk
0:03:01.6]} 11... O-O {[%clk 0:02:43.7]} 12. Rab1 {[%clk 0:03:02.2]} 12... a5
{[%clk 0:02:42.1]} 13. c5 {[%clk 0:03:02]} 13... Rb8 {[%clk 0:02:21.7]} 14. cxb6
{[%clk 0:02:36.4]} 14... cxb6 {[%clk 0:02:22.2]} 15. Qe2 {[%clk 0:02:33.6]}
15... Qc7 {[%clk 0:02:17.1]} 16. Rfc1 {[%clk 0:02:33.7]} 16... Rfc8 {[%clk
0:02:17.2]} 17. Bxf6 {[%clk 0:02:21.4]} 17... Nxf6 {[%clk 0:02:17.8]} 18. d5
{[%clk 0:02:22.8]} 18... Nd7 {[%clk 0:02:15.7]} 19. Nh4 {[%clk 0:02:24]} 19...
Nc5 {[%clk 0:02:16.4]} 20. Nf5 {[%clk 0:02:23.3]} 20... Qd8 {[%clk 0:02:09.4]}
21. Qg4 {[%clk 0:01:50.7]} 21... Qf6 {[%clk 0:02:09.3]} 22. Bc2 {[%clk
0:01:45.3]} 22... Ba6 {[%clk 0:02:09.9]} 23. Re1 {[%clk 0:01:37.5]} 23... Kh7
{[%clk 0:02:09.2]} 24. Re3 {[%clk 0:01:37.6]} 24... g6 {[%clk 0:02:05.4]} 25.
Ng3 {[%clk 0:00:42.4]} 25... Qf4 {[%clk 0:02:06]} 26. Qd1 {[%clk 0:00:32.7]}
26... Rf8 {[%clk 0:02:02.8]} 27. Rf3 {[%clk 0:00:24.3]} 27... Qh4 {[%clk
0:02:01.4]} 28. Qe1 {[%clk 0:00:20.7]} 28... Bc8 {[%clk 0:01:22.6]} 29. Nf1
{[%clk 0:00:14.8]} 29... Bd7 {[%clk 0:01:10.4]} 30. Rg3 {[%clk 0:00:15.9]} 30...
f5 {[%clk 0:00:48.7]} 31. exf5 {[%clk 0:00:14.4]} 31... gxf5 {[%clk 0:00:49.8]}
32. f4 {[%clk 0:00:15.1]} 32... e4 {[%clk 0:00:50.5]} 33. Rg7+ {[%clk
0:00:15.8]} 33... Kxg7 {[%clk 0:00:47]} 34. Qxh4 {[%clk 0:00:16.8]} 1-0

[Event "*** Titled Tuesday Blitz"]
[Site "Chess.com"]
[Date "2018.06.05"]
[Round "6"]
[White "gmjlh"]
[Black "GMNeiksans"]
[Result "0-1"]
[WhiteElo "2620"]
[BlackElo "2743"]
[TimeControl "180+2"]
[EndTime "14:27:35 PDT"]
[Termination "GMNeiksans won on time"]

1. e4 {[%clk 0:03:01.9]} 1... c5 {[%clk 0:02:59.9]} 2. Nf3 {[%clk 0:03:02.9]}
2... e6 {[%clk 0:03:00.8]} 3. g3 {[%clk 0:03:02]} 3... Nc6 {[%clk 0:03:01]} 4.
Bg2 {[%clk 0:03:02.6]} 4... Nf6 {[%clk 0:03:02]} 5. e5 {[%clk 0:02:58.4]} 5...
Ng4 {[%clk 0:03:00.3]} 6. d4 {[%clk 0:02:48.8]} 6... cxd4 {[%clk 0:02:59.4]} 7.
O-O {[%clk 0:02:37.2]} 7... Ngxe5 {[%clk 0:02:59.4]} 8. Nxe5 {[%clk 0:02:36.8]}
8... Nxe5 {[%clk 0:02:59.8]} 9. Qxd4 {[%clk 0:02:38]} 9... Nc6 {[%clk
0:02:58.2]} 10. Qf4 {[%clk 0:02:25]} 10... d5 {[%clk 0:02:56]} 11. c4 {[%clk
0:02:24.9]} 11... d4 {[%clk 0:02:48.3]} 12. Rd1 {[%clk 0:02:21.3]} 12... Bd7
{[%clk 0:02:43.8]} 13. Bxc6 {[%clk 0:01:53.8]} 13... Bxc6 {[%clk 0:02:44.1]} 14.
Rxd4 {[%clk 0:01:54.6]} 14... Qb6 {[%clk 0:02:36.2]} 15. Nc3 {[%clk 0:01:51.4]}
15... Bc5 {[%clk 0:02:36.4]} 16. Rd1 {[%clk 0:01:51.6]} 16... O-O {[%clk
0:02:35.5]} 17. b3 {[%clk 0:01:52.1]} 17... e5 {[%clk 0:02:24.9]} 18. Qxe5
{[%clk 0:01:36.1]} 18... Bxf2+ {[%clk 0:02:22.6]} 19. Kf1 {[%clk 0:01:37.3]}
19... Rae8 {[%clk 0:02:06]} 20. Qf4 {[%clk 0:01:16.3]} 20... Bc5 {[%clk
0:02:04.4]} 21. Nd5 {[%clk 0:01:16.1]} 21... Bxd5 {[%clk 0:02:00.2]} 22. Rxd5
{[%clk 0:01:18]} 22... f5 {[%clk 0:01:12]} 23. Bb2 {[%clk 0:01:18.6]} 23... Be3
{[%clk 0:00:59.6]} 24. Qd6 {[%clk 0:01:11.9]} 24... f4 {[%clk 0:00:58.3]} 25. g4
{[%clk 0:01:06.7]} 25... Re6 {[%clk 0:00:38.2]} 26. Qd7 {[%clk 0:00:43.8]} 26...
Rg6 {[%clk 0:00:38.4]} 27. Rb5 {[%clk 0:00:43.1]} 27... Qc6 {[%clk 0:00:34.6]}
28. Qxc6 {[%clk 0:00:35.9]} 28... bxc6 {[%clk 0:00:35.4]} 29. Rb7 {[%clk
0:00:37.2]} 29... Rxg4 {[%clk 0:00:34.7]} 30. Re1 {[%clk 0:00:04.9]} 30... Rg1+
{[%clk 0:00:33.8]} 31. Ke2 {[%clk 0:00:06.4]} 31... Rg2+ {[%clk 0:00:35.1]} 0-1

[Event "*** Titled Tuesday Blitz"]
[Site "Chess.com"]
[Date "2018.06.05"]
[Round "6"]
[White "Aleksandr_Kholin"]
[Black "Shaman91"]
[Result "1/2-1/2"]
[WhiteElo "2434"]
[BlackElo "2565"]
[TimeControl "180+2"]
[EndTime "14:27:40 PDT"]
[Termination "Game drawn by repetition"]

1. d4 {[%clk 0:02:58.4]} 1... d6 {[%clk 0:02:58.4]} 2. c4 {[%clk 0:02:59.7]}
2... e5 {[%clk 0:02:58.5]} 3. e3 {[%clk 0:02:59.8]} 3... g6 {[%clk 0:02:55.7]}
4. Nc3 {[%clk 0:03:01.1]} 4... Bg7 {[%clk 0:02:56.2]} 5. Nf3 {[%clk 0:02:59.6]}
5... Nd7 {[%clk 0:02:56.9]} 6. Be2 {[%clk 0:02:59.4]} 6... Ne7 {[%clk
0:02:57.3]} 7. O-O {[%clk 0:02:59.7]} 7... O-O {[%clk 0:02:58.5]} 8. b3 {[%clk
0:02:59.4]} 8... f5 {[%clk 0:02:58.9]} 9. Bb2 {[%clk 0:02:59.3]} 9... e4 {[%clk
0:02:59.6]} 10. Nd2 {[%clk 0:02:58.9]} 10... Nf6 {[%clk 0:03:00.3]} 11. a4
{[%clk 0:02:56]} 11... a5 {[%clk 0:02:58.4]} 12. Ba3 {[%clk 0:02:56.9]} 12... g5
{[%clk 0:02:47.1]} 13. f3 {[%clk 0:02:54.9]} 13... exf3 {[%clk 0:02:46.8]} 14.
Bxf3 {[%clk 0:02:55.1]} 14... Ng6 {[%clk 0:02:44.9]} 15. Nd5 {[%clk 0:02:47.4]}
15... Nxd5 {[%clk 0:02:42.3]} 16. Bxd5+ {[%clk 0:02:47]} 16... Kh8 {[%clk
0:02:42.8]} 17. g3 {[%clk 0:02:44]} 17... f4 {[%clk 0:02:38.5]} 18. Ne4 {[%clk
0:02:30.2]} 18... c6 {[%clk 0:02:36.3]} 19. Qh5 {[%clk 0:02:30.5]} 19... cxd5
{[%clk 0:02:29.4]} 20. Nxg5 {[%clk 0:02:28.7]} 20... h6 {[%clk 0:02:30.2]} 21.
exf4 {[%clk 0:02:28.6]} 21... Bxd4+ {[%clk 0:02:11.5]} 22. Kh1 {[%clk
0:02:28.3]} 22... Kg7 {[%clk 0:02:12.6]} 23. Rad1 {[%clk 0:02:25.9]} 23... Bf6
{[%clk 0:02:09]} 24. Rxd5 {[%clk 0:02:26.2]} 24... hxg5 {[%clk 0:01:59.5]} 25.
fxg5 {[%clk 0:02:23.8]} 25... Be5 {[%clk 0:01:50.4]} 26. Qh6+ {[%clk 0:02:22.1]}
26... Kg8 {[%clk 0:01:51.5]} 27. Qxg6+ {[%clk 0:02:22.3]} 27... Bg7 {[%clk
0:01:52.3]} 28. Re1 {[%clk 0:02:18.5]} 28... Bg4 {[%clk 0:01:46.2]} 29. Rxd6
{[%clk 0:02:16.8]} 29... Bf3+ {[%clk 0:01:33.2]} 30. Kg1 {[%clk 0:02:16.3]}
30... Qc7 {[%clk 0:01:34.2]} 31. Rde6 {[%clk 0:02:13.7]} 31... Qf7 {[%clk
0:00:53.7]} 32. Bxf8 {[%clk 0:02:12.9]} 32... Qxg6 {[%clk 0:00:51.6]} 33. Rxg6
{[%clk 0:02:11.8]} 33... Rxf8 {[%clk 0:00:52.8]} 34. h4 {[%clk 0:02:03.4]} 34...
Bh5 {[%clk 0:00:44]} 35. Rge6 {[%clk 0:02:03.4]} 35... Rf3 {[%clk 0:00:44]} 36.
Kg2 {[%clk 0:01:58.9]} 36... Rxb3 {[%clk 0:00:41]} 37. Kh3 {[%clk 0:01:59]}
37... Bf8 {[%clk 0:00:17.7]} 38. g6 {[%clk 0:01:57.8]} 38... Rc3 {[%clk
0:00:16]} 39. R1e4 {[%clk 0:01:53.9]} 39... Bd1 {[%clk 0:00:12.4]} 40. Re8
{[%clk 0:01:49.8]} 40... Bxa4 {[%clk 0:00:12.9]} 41. Rb8 {[%clk 0:01:42]} 41...
Kg7 {[%clk 0:00:07.8]} 42. Rxb7+ {[%clk 0:01:40.7]} 42... Kxg6 {[%clk
0:00:08.4]} 43. Rg4+ {[%clk 0:01:40.1]} 43... Kh6 {[%clk 0:00:08.4]} 44. Rb6+
{[%clk 0:01:39.3]} 44... Kh7 {[%clk 0:00:08.5]} 45. Rb7+ {[%clk 0:01:40.8]}
45... Kh6 {[%clk 0:00:09.4]} 46. Rb6+ {[%clk 0:01:41.4]} 46... Kh7 {[%clk
0:00:10.3]} 47. Rb7+ {[%clk 0:01:41.8]} 47... Kh6 {[%clk 0:00:11.1]} 1/2-1/2

[Event "*** Titled Tuesday Blitz"]
[Site "Chess.com"]
[Date "2018.06.05"]
[Round "6"]
[White "MFBerna"]
[Black "saraswathii"]
[Result "0-1"]
[WhiteElo "2239"]
[BlackElo "2298"]
[TimeControl "180+2"]
[EndTime "14:27:50 PDT"]
[Termination "saraswathii won by resignation"]

1. e4 {[%clk 0:02:57.3]} 1... c5 {[%clk 0:03:00.6]} 2. Nf3 {[%clk 0:02:53.8]}
2... e6 {[%clk 0:03:01.2]} 3. d4 {[%clk 0:02:50.2]} 3... cxd4 {[%clk 0:03:02]}
4. Nxd4 {[%clk 0:02:48.3]} 4... Nf6 {[%clk 0:03:02.4]} 5. Bd3 {[%clk 0:02:44.7]}
5... Nc6 {[%clk 0:03:02.6]} 6. Be3 {[%clk 0:02:35.8]} 6... d5 {[%clk 0:03:02.5]}
7. Nxc6 {[%clk 0:02:19.5]} 7... bxc6 {[%clk 0:03:02.6]} 8. Nd2 {[%clk
0:02:15.1]} 8... Bd6 {[%clk 0:02:57.1]} 9. O-O {[%clk 0:02:12.5]} 9... e5 {[%clk
0:02:41.4]} 10. c4 {[%clk 0:02:03.9]} 10... d4 {[%clk 0:02:36.6]} 11. Bg5 {[%clk
0:02:04.2]} 11... h6 {[%clk 0:02:36.9]} 12. Bh4 {[%clk 0:02:04.5]} 12... O-O
{[%clk 0:02:35.4]} 13. c5 {[%clk 0:01:50.4]} 13... Bxc5 {[%clk 0:02:23.1]} 14.
f4 {[%clk 0:01:50.7]} 14... Qc7 {[%clk 0:01:51.9]} 15. fxe5 {[%clk 0:01:25.2]}
15... Ng4 {[%clk 0:01:46.1]} 16. Nc4 {[%clk 0:01:21.8]} 16... Ne3 {[%clk
0:01:40]} 17. Nxe3 {[%clk 0:01:09.4]} 17... dxe3 {[%clk 0:01:41.9]} 18. Kh1
{[%clk 0:01:02]} 18... Qxe5 {[%clk 0:01:39.7]} 19. Rc1 {[%clk 0:00:57.1]} 19...
Bb6 {[%clk 0:01:22]} 20. Bg3 {[%clk 0:00:53.2]} 20... Qxb2 {[%clk 0:01:18.2]}
21. Rc2 {[%clk 0:00:41.6]} 21... Qd4 {[%clk 0:01:09.9]} 22. Rc4 {[%clk
0:00:28.3]} 22... Qd8 {[%clk 0:01:03.8]} 23. Qe2 {[%clk 0:00:23.8]} 23... Ba6
{[%clk 0:01:02.8]} 24. Rc3 {[%clk 0:00:21.7]} 24... Bxd3 {[%clk 0:01:03.1]} 25.
Rxd3 {[%clk 0:00:23.3]} 25... Qg5 {[%clk 0:00:56.3]} 26. Bf4 {[%clk 0:00:20]}
26... Qg6 {[%clk 0:00:57.1]} 27. Qf3 {[%clk 0:00:16.6]} 27... Rae8 {[%clk
0:00:51.4]} 28. Rd6 {[%clk 0:00:12.6]} 28... Qxe4 {[%clk 0:00:48.8]} 29. Qg3
{[%clk 0:00:11]} 29... e2 {[%clk 0:00:40.4]} 30. Re1 {[%clk 0:00:11.4]} 30...
Re6 {[%clk 0:00:40.1]} 31. Bxh6 {[%clk 0:00:06.3]} 31... Rg6 {[%clk 0:00:40.6]}
32. Rxg6 {[%clk 0:00:06.9]} 32... fxg6 {[%clk 0:00:39]} 33. Be3 {[%clk
0:00:05.8]} 0-1

[Event "*** Titled Tuesday Blitz"]
[Site "Chess.com"]
[Date "2018.06.05"]
[Round "6"]
[White "Mr_Penings"]
[Black "Durarbayli"]
[Result "0-1"]
[WhiteElo "2452"]
[BlackElo "2662"]
[TimeControl "180+2"]
[EndTime "14:27:51 PDT"]
[Termination "Durarbayli won by resignation"]

1. c4 {[%clk 0:02:35.4]} 1... c5 {[%clk 0:02:55.2]} 2. g3 {[%clk 0:02:35.5]}
2... Nc6 {[%clk 0:02:55.3]} 3. Bg2 {[%clk 0:02:36.7]} 3... g6 {[%clk 0:02:56.8]}
4. Nc3 {[%clk 0:02:37.7]} 4... Bg7 {[%clk 0:02:58.1]} 5. e4 {[%clk 0:02:38.2]}
5... d6 {[%clk 0:02:54.8]} 6. Nge2 {[%clk 0:02:39]} 6... e6 {[%clk 0:02:54.9]}
7. O-O {[%clk 0:02:39.8]} 7... Nge7 {[%clk 0:02:55.7]} 8. d3 {[%clk 0:02:41.1]}
8... O-O {[%clk 0:02:56.7]} 9. Be3 {[%clk 0:02:40.8]} 9... Nd4 {[%clk
0:02:57.7]} 10. Rb1 {[%clk 0:02:40]} 10... Nec6 {[%clk 0:02:43.4]} 11. a3 {[%clk
0:02:38.2]} 11... a5 {[%clk 0:02:31]} 12. Nb5 {[%clk 0:02:31.4]} 12... Nxb5
{[%clk 0:02:30.2]} 13. cxb5 {[%clk 0:02:32.5]} 13... Nd4 {[%clk 0:02:31.7]} 14.
a4 {[%clk 0:01:59.4]} 14... b6 {[%clk 0:02:25.5]} 15. e5 {[%clk 0:01:39.9]}
15... Nxe2+ {[%clk 0:02:24.4]} 16. Qxe2 {[%clk 0:01:40]} 16... Ra7 {[%clk
0:02:07.2]} 17. d4 {[%clk 0:01:35]} 17... Bb7 {[%clk 0:02:06.4]} 18. Bxb7 {[%clk
0:01:13]} 18... Rxb7 {[%clk 0:02:05.8]} 19. dxc5 {[%clk 0:01:13.4]} 19... dxc5
{[%clk 0:02:01.9]} 20. Rfd1 {[%clk 0:01:08.5]} 20... Rd7 {[%clk 0:01:25.3]} 21.
Rxd7 {[%clk 0:01:08.5]} 21... Qxd7 {[%clk 0:01:27.2]} 22. Rd1 {[%clk 0:01:09.5]}
22... Qc7 {[%clk 0:01:28.2]} 23. f4 {[%clk 0:01:10.5]} 23... Rd8 {[%clk
0:01:29.4]} 24. Rd2 {[%clk 0:01:07]} 24... Rd5 {[%clk 0:01:27.1]} 25. Qd1 {[%clk
0:00:48.8]} 25... Qd7 {[%clk 0:01:20.5]} 26. b3 {[%clk 0:00:43]} 26... Bf8
{[%clk 0:01:09.6]} 27. Kg2 {[%clk 0:00:36.9]} 27... Be7 {[%clk 0:01:06.6]} 28.
h4 {[%clk 0:00:33.1]} 28... h5 {[%clk 0:01:02.7]} 29. Kh3 {[%clk 0:00:32.9]}
29... f6 {[%clk 0:01:02.6]} 30. Qc2 {[%clk 0:00:28.9]} 30... Kf7 {[%clk
0:01:02.6]} 31. Rf2 {[%clk 0:00:21.1]} 31... Rd3 {[%clk 0:01:00.6]} 32. Bc1
{[%clk 0:00:19.1]} 32... Qd5 {[%clk 0:01:00.4]} 33. Kh2 {[%clk 0:00:17.5]} 33...
Qxb3 {[%clk 0:00:57.5]} 34. Qxb3 {[%clk 0:00:12.7]} 34... Rxb3 {[%clk
0:00:58.8]} 35. Rd2 {[%clk 0:00:11.9]} 35... fxe5 {[%clk 0:00:51.9]} 36. fxe5
{[%clk 0:00:12.2]} 36... Ke8 {[%clk 0:00:51.6]} 37. Re2 {[%clk 0:00:05.7]} 37...
Rb4 {[%clk 0:00:52.2]} 0-1

[Event "*** Titled Tuesday Blitz"]
[Site "Chess.com"]
[Date "2018.06.05"]
[Round "6"]
[White "Angry_Serb"]
[Black "JosefineHeinemann"]
[Result "0-1"]
[WhiteElo "2452"]
[BlackElo "2316"]
[TimeControl "180+2"]
[EndTime "14:27:55 PDT"]
[Termination "JosefineHeinemann won by resignation"]

1. e4 {[%clk 0:03:00.3]} 1... e5 {[%clk 0:02:59.2]} 2. Nf3 {[%clk 0:03:01.2]}
2... Nc6 {[%clk 0:03:00.4]} 3. Nc3 {[%clk 0:02:59.6]} 3... Nf6 {[%clk 0:03:01]}
4. Be2 {[%clk 0:03:01.1]} 4... Bc5 {[%clk 0:03:00.7]} 5. Nxe5 {[%clk 0:03:01.9]}
5... Nxe5 {[%clk 0:02:59.5]} 6. d4 {[%clk 0:03:02.3]} 6... Bd6 {[%clk
0:03:00.9]} 7. dxe5 {[%clk 0:03:03.6]} 7... Bxe5 {[%clk 0:03:01.8]} 8. Nb5
{[%clk 0:03:05.5]} 8... a6 {[%clk 0:02:57.3]} 9. f4 {[%clk 0:03:05.6]} 9... Bxf4
{[%clk 0:02:53.8]} 10. Bxf4 {[%clk 0:03:00.2]} 10... axb5 {[%clk 0:02:54.9]} 11.
e5 {[%clk 0:03:01.1]} 11... Ng8 {[%clk 0:02:56]} 12. Bxb5 {[%clk 0:02:52.8]}
12... Ne7 {[%clk 0:02:56.4]} 13. O-O {[%clk 0:02:51]} 13... O-O {[%clk
0:02:57.4]} 14. Bg5 {[%clk 0:02:49.3]} 14... c6 {[%clk 0:02:56.2]} 15. Bd3
{[%clk 0:02:50.1]} 15... Qb6+ {[%clk 0:02:57.2]} 16. Kh1 {[%clk 0:02:50.8]}
16... Ng6 {[%clk 0:02:58.9]} 17. Bxg6 {[%clk 0:02:43.3]} 17... hxg6 {[%clk
0:02:58.3]} 18. Qd6 {[%clk 0:02:39.6]} 18... Qxb2 {[%clk 0:02:56.2]} 19. a4
{[%clk 0:02:24.4]} 19... Qxc2 {[%clk 0:02:56.5]} 20. a5 {[%clk 0:02:25.2]} 20...
Qc4 {[%clk 0:02:52.8]} 21. Rf4 {[%clk 0:02:07.5]} 21... Qc3 {[%clk 0:02:50.8]}
22. Rfa4 {[%clk 0:01:57.7]} 22... Re8 {[%clk 0:02:49.1]} 23. Be7 {[%clk
0:01:50.5]} 23... Qb3 {[%clk 0:02:43.4]} 24. Rh4 {[%clk 0:01:33.3]} 24... Rxa5
{[%clk 0:02:39.4]} 25. Rf1 {[%clk 0:01:18.2]} 25... Rd5 {[%clk 0:02:35.9]} 26.
Qc7 {[%clk 0:01:14.2]} 26... Qb5 {[%clk 0:02:33.4]} 27. Rhf4 {[%clk 0:01:12.2]}
27... Rxe5 {[%clk 0:02:32.8]} 28. Bb4 {[%clk 0:00:55.7]} 28... Rf5 {[%clk
0:02:29.2]} 29. h3 {[%clk 0:00:41.3]} 29... Rxf4 {[%clk 0:02:25.1]} 30. Qxf4
{[%clk 0:00:37.7]} 30... Qf5 {[%clk 0:02:24.7]} 31. Qc1 {[%clk 0:00:37]} 31...
Qe6 {[%clk 0:02:24.7]} 32. Bc3 {[%clk 0:00:37.4]} 32... d5 {[%clk 0:02:23.7]}
33. Qb2 {[%clk 0:00:34.6]} 33... Qe2 {[%clk 0:02:16.8]} 34. Qa1 {[%clk
0:00:34.3]} 34... Qh5 {[%clk 0:02:09.4]} 35. Rf3 {[%clk 0:00:21.3]} 35... c5
{[%clk 0:02:04]} 36. Bxg7 {[%clk 0:00:21.5]} 36... d4 {[%clk 0:02:05.3]} 37. Bf6
{[%clk 0:00:22.1]} 37... Qd5 {[%clk 0:01:56.3]} 38. Qf1 {[%clk 0:00:18.9]} 38...
Re6 {[%clk 0:01:39.3]} 39. Rf4 {[%clk 0:00:17.9]} 39... Qd6 {[%clk 0:01:36.7]}
40. Qf3 {[%clk 0:00:16]} 40... d3 {[%clk 0:01:35.8]} 41. Bc3 {[%clk 0:00:12.6]}
41... Re7 {[%clk 0:01:26.9]} 42. Bd2 {[%clk 0:00:08.4]} 42... Bf5 {[%clk
0:01:23.8]} 43. Qf2 {[%clk 0:00:05.6]} 43... Re2 {[%clk 0:01:24.1]} 44. Qg3
{[%clk 0:00:03.7]} 44... Rxd2 {[%clk 0:01:24.5]} 45. Qg5 {[%clk 0:00:05.4]}
45... Rd1+ {[%clk 0:01:24.2]} 46. Kh2 {[%clk 0:00:06.3]} 46... Rf1 {[%clk
0:01:25.8]} 47. g3 {[%clk 0:00:07.7]} 47... Rxf4 {[%clk 0:01:26.1]} 48. gxf4
{[%clk 0:00:09.6]} 48... d2 {[%clk 0:01:27.3]} 0-1

[Event "*** Titled Tuesday Blitz"]
[Site "Chess.com"]
[Date "2018.06.05"]
[Round "6"]
[White "AndreyOstrovskiy"]
[Black "Last7Samurai"]
[Result "1-0"]
[WhiteElo "2677"]
[BlackElo "2699"]
[TimeControl "180+2"]
[EndTime "14:28:00 PDT"]
[Termination "AndreyOstrovskiy won by resignation"]

1. e4 {[%clk 0:03:01.9]} 1... e6 {[%clk 0:02:57.8]} 2. d4 {[%clk 0:03:02.3]}
2... d5 {[%clk 0:02:58.8]} 3. Nc3 {[%clk 0:03:03.4]} 3... Nf6 {[%clk 0:02:59.6]}
4. e5 {[%clk 0:03:04.7]} 4... Nfd7 {[%clk 0:03:00.4]} 5. f4 {[%clk 0:03:06.3]}
5... c5 {[%clk 0:03:02]} 6. Nf3 {[%clk 0:03:07.8]} 6... Nc6 {[%clk 0:03:03.6]}
7. Be3 {[%clk 0:03:07.8]} 7... Be7 {[%clk 0:03:05.2]} 8. Qd2 {[%clk 0:03:08.2]}
8... O-O {[%clk 0:03:07.1]} 9. dxc5 {[%clk 0:03:08]} 9... Nxc5 {[%clk 0:03:09]}
10. O-O-O {[%clk 0:03:03.3]} 10... a6 {[%clk 0:03:09.9]} 11. Kb1 {[%clk
0:03:02.5]} 11... b5 {[%clk 0:03:10.4]} 12. Qf2 {[%clk 0:02:58.4]} 12... Na4
{[%clk 0:03:06.9]} 13. Ne2 {[%clk 0:02:53.2]} 13... Rb8 {[%clk 0:02:58]} 14.
Ned4 {[%clk 0:02:52.7]} 14... Nxd4 {[%clk 0:02:57.2]} 15. Nxd4 {[%clk
0:02:53.6]} 15... f5 {[%clk 0:02:52.3]} 16. Nc6 {[%clk 0:02:52.1]} 16... Qc7
{[%clk 0:02:48.1]} 17. Nxb8 {[%clk 0:02:53.1]} 17... Qxb8 {[%clk 0:02:49.4]} 18.
Bd3 {[%clk 0:02:51.2]} 18... b4 {[%clk 0:02:43]} 19. Ka1 {[%clk 0:02:48.2]}
19... Bd7 {[%clk 0:02:37.2]} 20. Bd4 {[%clk 0:02:35.4]} 20... a5 {[%clk
0:02:30.4]} 21. h3 {[%clk 0:02:35.3]} 21... Rc8 {[%clk 0:02:21.8]} 22. g4 {[%clk
0:02:33.8]} 22... Bc5 {[%clk 0:02:22.4]} 23. gxf5 {[%clk 0:02:31.3]} 23... exf5
{[%clk 0:02:24.3]} 24. Rhg1 {[%clk 0:02:28.9]} 24... Qa7 {[%clk 0:02:22.2]} 25.
Bxc5 {[%clk 0:02:28.6]} 25... Nxc5 {[%clk 0:02:24.1]} 26. Qg2 {[%clk 0:02:17.9]}
26... Be6 {[%clk 0:02:24.6]} 27. Qg5 {[%clk 0:01:53.2]} 27... Nxd3 {[%clk
0:01:59.5]} 28. cxd3 {[%clk 0:01:53.2]} 28... a4 {[%clk 0:01:58.8]} 29. Rc1
{[%clk 0:01:51.7]} 29... Re8 {[%clk 0:01:48.5]} 30. Rc5 {[%clk 0:01:14]} 30...
a3 {[%clk 0:01:38.6]} 31. b3 {[%clk 0:01:14.1]} 31... Re7 {[%clk 0:00:55.7]} 32.
d4 {[%clk 0:01:10.1]} 32... Re8 {[%clk 0:00:37.9]} 33. h4 {[%clk 0:01:06.8]}
33... Qf7 {[%clk 0:00:31.9]} 34. h5 {[%clk 0:01:05.6]} 34... Bc8 {[%clk
0:00:32.3]} 35. Rgc1 {[%clk 0:00:57.3]} 35... Bd7 {[%clk 0:00:33.5]} 36. Rc7
{[%clk 0:00:54.8]} 36... Qe6 {[%clk 0:00:34.4]} 37. h6 {[%clk 0:00:48.2]} 37...
g6 {[%clk 0:00:34]} 38. Qf6 {[%clk 0:00:38.3]} 38... Qxf6 {[%clk 0:00:35.3]} 39.
exf6 {[%clk 0:00:39.5]} 39... Be6 {[%clk 0:00:36.8]} 40. Rg7+ {[%clk 0:00:36.9]}
40... Kh8 {[%clk 0:00:37.8]} 41. Rcc7 {[%clk 0:00:31.6]} 41... Bd7 {[%clk
0:00:29.5]} 42. Re7 {[%clk 0:00:32.4]} 1-0